[Event "*** Titled Tuesday Blitz"]
[Site "Chess.com"]
[Date "2021.04.27"]
[Round "2"]
[White "Ermito2020"]
[Black "Fandorine"]
[Result "1-0"]
[WhiteElo "2609"]
[BlackElo "2900"]
[TimeControl "180+1"]
[EndTime "10:19:36 PDT"]
[Termination "Ermito2020 won by resignation"]

1. e4 {[%clk 0:03:00.9]} 1... c5 {[%clk 0:02:59.5]} 2. Nf3 {[%clk 0:03:00]} 2...
e6 {[%clk 0:02:59.6]} 3. d4 {[%clk 0:02:59.8]} 3... cxd4 {[%clk 0:03:00.5]} 4.
Nxd4 {[%clk 0:02:57.7]} 4... Nc6 {[%clk 0:03:01.2]} 5. Nc3 {[%clk 0:02:56.8]}
5... Qc7 {[%clk 0:03:01.7]} 6. Be3 {[%clk 0:02:56.9]} 6... a6 {[%clk 0:03:01.7]}
7. Qf3 {[%clk 0:02:50.3]} 7... Ne5 {[%clk 0:03:02]} 8. Qg3 {[%clk 0:02:49.7]}
8... Bd6 {[%clk 0:03:02.7]} 9. f4 {[%clk 0:02:45.6]} 9... Ng6 {[%clk 0:03:02.9]}
10. e5 {[%clk 0:02:40]} 10... Bb4 {[%clk 0:03:03]} 11. Bd2 {[%clk 0:02:34.6]}
11... d6 {[%clk 0:02:59.7]} 12. a3 {[%clk 0:01:42.3]} 12... Bc5 {[%clk
0:02:41.1]} 13. Nb3 {[%clk 0:01:41.7]} 13... dxe5 {[%clk 0:02:19.6]} 14. fxe5
{[%clk 0:01:42.6]} 14... Be7 {[%clk 0:02:14.2]} 15. O-O-O {[%clk 0:01:41.5]}
15... Qxe5 {[%clk 0:02:09.2]} 16. Qf3 {[%clk 0:01:41.3]} 16... Nf6 {[%clk
0:02:05.4]} 17. Bd3 {[%clk 0:01:39.2]} 17... O-O {[%clk 0:01:50.6]} 18. g4
{[%clk 0:01:38.8]} 18... Qc7 {[%clk 0:01:29.2]} 19. g5 {[%clk 0:01:35.8]} 19...
Ne5 {[%clk 0:01:21.4]} 20. Qh3 {[%clk 0:01:28.8]} 20... Nxd3+ {[%clk 0:01:19.8]}
21. Qxd3 {[%clk 0:01:29.7]} 21... Ng4 {[%clk 0:01:04.5]} 22. Ne4 {[%clk
0:01:23.2]} 22... f5 {[%clk 0:00:57.6]} 23. gxf6 {[%clk 0:01:21.8]} 23... Nxf6
{[%clk 0:00:57.8]} 24. Rhg1 {[%clk 0:01:17.9]} 24... Nxe4 {[%clk 0:00:54.4]} 25.
Qxe4 {[%clk 0:01:17.2]} 25... Bf6 {[%clk 0:00:55.1]} 26. Kb1 {[%clk 0:01:06.9]}
26... Bd7 {[%clk 0:00:52.7]} 27. Bf4 {[%clk 0:01:06.6]} 27... Bc6 {[%clk
0:00:49.1]} 28. Qxe6+ {[%clk 0:01:05.6]} 28... Qf7 {[%clk 0:00:49.7]} 29. Qxf7+
{[%clk 0:00:53.8]} 29... Rxf7 {[%clk 0:00:49.8]} 30. Bg5 {[%clk 0:00:54.3]}
30... Be5 {[%clk 0:00:48.7]} 31. h4 {[%clk 0:00:51.5]} 31... Raf8 {[%clk
0:00:42.1]} 32. Nd4 {[%clk 0:00:49.9]} 32... Bd7 {[%clk 0:00:28.3]} 33. Be3
{[%clk 0:00:49]} 33... h6 {[%clk 0:00:23.8]} 34. Bxh6 {[%clk 0:00:43.6]} 34...
Kh7 {[%clk 0:00:21.2]} 35. Be3 {[%clk 0:00:40]} 35... b5 {[%clk 0:00:21.4]} 36.
c3 {[%clk 0:00:36.6]} 36... Re8 {[%clk 0:00:21.1]} 37. Rde1 {[%clk 0:00:34.9]}
37... Bh2 {[%clk 0:00:20.8]} 38. Rh1 {[%clk 0:00:32.6]} 38... Bg3 {[%clk
0:00:20.7]} 39. Re2 {[%clk 0:00:28.2]} 39... Bg4 {[%clk 0:00:21.1]} 40. Rg2
{[%clk 0:00:18.8]} 40... Rxe3 {[%clk 0:00:20.5]} 41. Rhg1 {[%clk 0:00:18.8]}
41... Bxh4 {[%clk 0:00:08.5]} 42. Rxg4 {[%clk 0:00:18.6]} 42... Bf6 {[%clk
0:00:08.6]} 43. Rh1+ {[%clk 0:00:18.3]} 43... Kg8 {[%clk 0:00:08.6]} 44. Nf5
{[%clk 0:00:19.2]} 44... Re2 {[%clk 0:00:05.9]} 45. Nh6+ {[%clk 0:00:18.8]}
45... Kf8 {[%clk 0:00:06.6]} 46. Nxf7 {[%clk 0:00:19.4]} 46... Kxf7 {[%clk
0:00:07.5]} 47. Rgg1 {[%clk 0:00:18.7]} 47... Re6 {[%clk 0:00:07.8]} 48. Re1
{[%clk 0:00:18.7]} 48... Rc6 {[%clk 0:00:08.2]} 49. Rd1 {[%clk 0:00:18.9]} 49...
Ke6 {[%clk 0:00:05.3]} 50. Rhe1+ {[%clk 0:00:18.5]} 50... Kf5 {[%clk 0:00:05.8]}
51. Rf1+ {[%clk 0:00:19.1]} 51... Kg6 {[%clk 0:00:05.3]} 52. Kc2 {[%clk
0:00:20]} 52... Re6 {[%clk 0:00:05.2]} 53. Rde1 {[%clk 0:00:19.1]} 53... Rc6
{[%clk 0:00:05.7]} 54. Kb3 {[%clk 0:00:18.8]} 54... Kf7 {[%clk 0:00:04.7]} 55.
a4 {[%clk 0:00:18.4]} 55... Rb6 {[%clk 0:00:04.6]} 56. axb5 {[%clk 0:00:17.8]}
56... Rxb5+ {[%clk 0:00:04.6]} 57. Kc2 {[%clk 0:00:17.7]} 57... a5 {[%clk
0:00:05.2]} 58. Ra1 {[%clk 0:00:18.1]} 58... Rc5 {[%clk 0:00:04.3]} 59. Rf4
{[%clk 0:00:17.6]} 59... Ke6 {[%clk 0:00:04.7]} 60. Re4+ {[%clk 0:00:16.3]}
60... Kd7 {[%clk 0:00:04.4]} 61. Rea4 {[%clk 0:00:17.2]} 61... Bd8 {[%clk
0:00:04.9]} 62. Kd3 {[%clk 0:00:16.6]} 62... g5 {[%clk 0:00:05]} 63. Rd4+ {[%clk
0:00:16.6]} 63... Ke7 {[%clk 0:00:04.2]} 64. Re1+ {[%clk 0:00:16.8]} 1-0

[Event "*** Titled Tuesday Blitz"]
[Site "Chess.com"]
[Date "2021.04.27"]
[Round "2"]
[White "sokidze"]
[Black "ehrenfeld"]
[Result "1/2-1/2"]
[WhiteElo "2707"]
[BlackElo "2510"]
[TimeControl "180+1"]
[EndTime "10:19:37 PDT"]
[Termination "Game drawn - insufficient material"]

1. d4 {[%clk 0:03:00.9]} 1... Nf6 {[%clk 0:02:51.8]} 2. g3 {[%clk 0:03:00.8]}
2... d5 {[%clk 0:02:51.2]} 3. Nf3 {[%clk 0:03:00.1]} 3... c6 {[%clk 0:02:51.4]}
4. c4 {[%clk 0:03:00.3]} 4... Bf5 {[%clk 0:02:49.2]} 5. Nc3 {[%clk 0:03:00.2]}
5... e6 {[%clk 0:02:49.1]} 6. Nh4 {[%clk 0:03:00.6]} 6... Bg6 {[%clk 0:02:46.6]}
7. Nxg6 {[%clk 0:03:00.6]} 7... hxg6 {[%clk 0:02:46.2]} 8. Qd3 {[%clk 0:03:01]}
8... Nbd7 {[%clk 0:02:44.2]} 9. Bg2 {[%clk 0:03:00.3]} 9... Bd6 {[%clk
0:02:41.6]} 10. O-O {[%clk 0:02:53.6]} 10... Ng4 {[%clk 0:02:28.5]} 11. h3
{[%clk 0:02:43]} 11... Ngf6 {[%clk 0:02:28.2]} 12. Rd1 {[%clk 0:02:38.1]} 12...
O-O {[%clk 0:02:25.6]} 13. Rb1 {[%clk 0:02:37]} 13... Qe7 {[%clk 0:02:23.3]} 14.
Bg5 {[%clk 0:02:34.2]} 14... dxc4 {[%clk 0:02:11.3]} 15. Qxc4 {[%clk 0:02:31.9]}
15... Bc7 {[%clk 0:02:00.1]} 16. e4 {[%clk 0:02:19.8]} 16... e5 {[%clk
0:01:57.7]} 17. d5 {[%clk 0:01:51.1]} 17... Nb6 {[%clk 0:01:56.7]} 18. Qe2
{[%clk 0:01:37.8]} 18... cxd5 {[%clk 0:01:55.6]} 19. exd5 {[%clk 0:01:38.7]}
19... Rad8 {[%clk 0:01:48.6]} 20. Rbc1 {[%clk 0:01:30.4]} 20... Rfe8 {[%clk
0:01:46.2]} 21. a4 {[%clk 0:01:21.9]} 21... Bb8 {[%clk 0:01:30.8]} 22. a5 {[%clk
0:01:12.7]} 22... Nc8 {[%clk 0:01:30.5]} 23. Ne4 {[%clk 0:01:04.1]} 23... Nd6
{[%clk 0:01:28.7]} 24. Nxf6+ {[%clk 0:00:59.7]} 24... gxf6 {[%clk 0:01:28.4]}
25. Be3 {[%clk 0:00:59.8]} 25... Nf5 {[%clk 0:01:22.9]} 26. Bc5 {[%clk
0:00:58.6]} 26... Nd6 {[%clk 0:01:17.7]} 27. h4 {[%clk 0:00:57.3]} 27... f5
{[%clk 0:01:14]} 28. h5 {[%clk 0:00:53.6]} 28... Kg7 {[%clk 0:01:13.2]} 29. Qe3
{[%clk 0:00:45.1]} 29... a6 {[%clk 0:01:00]} 30. Bf3 {[%clk 0:00:34.5]} 30...
Qf6 {[%clk 0:00:59]} 31. hxg6 {[%clk 0:00:30.4]} 31... fxg6 {[%clk 0:00:58.5]}
32. Kg2 {[%clk 0:00:30.9]} 32... Nf7 {[%clk 0:00:50.7]} 33. Rh1 {[%clk
0:00:14.8]} 33... e4 {[%clk 0:00:48.9]} 34. Bd1 {[%clk 0:00:11.8]} 34... Be5
{[%clk 0:00:45.6]} 35. Bb3 {[%clk 0:00:09.1]} 35... Rh8 {[%clk 0:00:42]} 36.
Rxh8 {[%clk 0:00:04.9]} 36... Rxh8 {[%clk 0:00:41]} 37. Rh1 {[%clk 0:00:05.8]}
37... Rxh1 {[%clk 0:00:40.2]} 38. Kxh1 {[%clk 0:00:06.7]} 38... Bxb2 {[%clk
0:00:37.2]} 39. Kg2 {[%clk 0:00:06.6]} 39... Be5 {[%clk 0:00:36.4]} 40. f3
{[%clk 0:00:04.9]} 40... exf3+ {[%clk 0:00:33.4]} 41. Qxf3 {[%clk 0:00:05.8]}
41... Bd6 {[%clk 0:00:32.6]} 42. Bf2 {[%clk 0:00:04.9]} 42... Ng5 {[%clk
0:00:30.2]} 43. Qd3 {[%clk 0:00:04.5]} 43... Ne4 {[%clk 0:00:29.3]} 44. Bd4
{[%clk 0:00:03.8]} 44... Be5 {[%clk 0:00:29.2]} 45. Bf2 {[%clk 0:00:04]} 45...
Qd6 {[%clk 0:00:28]} 46. Bd1 {[%clk 0:00:02.6]} 46... Nxf2 {[%clk 0:00:26.7]}
47. Kxf2 {[%clk 0:00:03]} 47... Qc5+ {[%clk 0:00:25.3]} 48. Kf1 {[%clk
0:00:03.6]} 48... Bd6 {[%clk 0:00:23.1]} 49. Qb3 {[%clk 0:00:03]} 49... Kf6
{[%clk 0:00:20.5]} 50. Qb2+ {[%clk 0:00:01.8]} 50... Be5 {[%clk 0:00:17.6]} 51.
Qxb7 {[%clk 0:00:02.3]} 51... Qxa5 {[%clk 0:00:14.7]} 52. Qc6+ {[%clk
0:00:02.2]} 52... Kg5 {[%clk 0:00:13.8]} 53. Qc1+ {[%clk 0:00:01.6]} 53... Kf6
{[%clk 0:00:12.7]} 54. Qc6+ {[%clk 0:00:02.2]} 54... Kg7 {[%clk 0:00:11.4]} 55.
Qd7+ {[%clk 0:00:02.2]} 55... Kh6 {[%clk 0:00:11]} 56. Qc6 {[%clk 0:00:02.7]}
56... Qb5+ {[%clk 0:00:10.9]} 57. Qxb5 {[%clk 0:00:03]} 57... axb5 {[%clk
0:00:11.1]} 58. Be2 {[%clk 0:00:03.2]} 58... Bxg3 {[%clk 0:00:10.9]} 59. Bxb5
{[%clk 0:00:03.1]} 59... Bd6 {[%clk 0:00:11.4]} 60. Kg2 {[%clk 0:00:03.4]} 60...
Kg5 {[%clk 0:00:11.7]} 61. Be2 {[%clk 0:00:03.8]} 61... Kf4 {[%clk 0:00:11.7]}
62. Bd3 {[%clk 0:00:04.2]} 62... g5 {[%clk 0:00:11.9]} 63. Bb1 {[%clk
0:00:04.6]} 63... g4 {[%clk 0:00:12.5]} 64. Bc2 {[%clk 0:00:05.1]} 64... Kg5
{[%clk 0:00:12.2]} 65. Bb1 {[%clk 0:00:05.7]} 65... f4 {[%clk 0:00:13.1]} 66.
Be4 {[%clk 0:00:06]} 66... f3+ {[%clk 0:00:14]} 67. Bxf3 {[%clk 0:00:06.2]}
67... gxf3+ {[%clk 0:00:13.5]} 68. Kxf3 {[%clk 0:00:07.1]} 68... Kf5 {[%clk
0:00:13.9]} 69. Ke3 {[%clk 0:00:07.4]} 69... Ke5 {[%clk 0:00:14.6]} 70. Kf3
{[%clk 0:00:08.3]} 70... Kxd5 {[%clk 0:00:15.5]} 1/2-1/2

[Event "*** Titled Tuesday Blitz"]
[Site "Chess.com"]
[Date "2021.04.27"]
[Round "2"]
[White "chito89"]
[Black "A-S-00"]
[Result "1-0"]
[WhiteElo "2756"]
[BlackElo "2328"]
[TimeControl "180+1"]
[EndTime "10:19:38 PDT"]
[Termination "chito89 won by checkmate"]

1. e4 {[%clk 0:03:00.9]} 1... e6 {[%clk 0:02:57.9]} 2. d4 {[%clk 0:03:00]} 2...
d5 {[%clk 0:02:57.6]} 3. Nd2 {[%clk 0:02:58.7]} 3... Nf6 {[%clk 0:02:54.4]} 4.
e5 {[%clk 0:02:49.1]} 4... Nfd7 {[%clk 0:02:52.6]} 5. Bd3 {[%clk 0:02:48.9]}
5... c5 {[%clk 0:02:51.9]} 6. c3 {[%clk 0:02:48.4]} 6... Nc6 {[%clk 0:02:51.3]}
7. Ne2 {[%clk 0:02:47.2]} 7... Qb6 {[%clk 0:02:46.2]} 8. Nf3 {[%clk 0:02:46.4]}
8... Be7 {[%clk 0:02:31.7]} 9. O-O {[%clk 0:02:43.4]} 9... O-O {[%clk
0:02:12.7]} 10. b3 {[%clk 0:02:40.2]} 10... f6 {[%clk 0:01:58.2]} 11. Nf4 {[%clk
0:02:21.9]} 11... fxe5 {[%clk 0:01:42.6]} 12. Nxe6 {[%clk 0:02:12.9]} 12... e4
{[%clk 0:01:38.4]} 13. Nxf8 {[%clk 0:02:08.1]} 13... Nxf8 {[%clk 0:01:38.2]} 14.
Bc2 {[%clk 0:01:47.3]} 14... exf3 {[%clk 0:01:35.4]} 15. Qd3 {[%clk 0:01:46.7]}
15... g6 {[%clk 0:01:24.1]} 16. Qxf3 {[%clk 0:01:42.1]} 16... cxd4 {[%clk
0:01:13.1]} 17. Qxd5+ {[%clk 0:01:35.9]} 17... Be6 {[%clk 0:01:12.2]} 18. Qe4
{[%clk 0:01:31.4]} 18... dxc3 {[%clk 0:01:00]} 19. Be3 {[%clk 0:01:30.6]} 19...
Qb5 {[%clk 0:00:47.1]} 20. a4 {[%clk 0:01:13.4]} 20... Qd5 {[%clk 0:00:41.7]}
21. Qf4 {[%clk 0:01:08.7]} 21... Bd6 {[%clk 0:00:33.6]} 22. Qh6 {[%clk
0:01:06.4]} 22... Qe5 {[%clk 0:00:20.4]} 23. Rfe1 {[%clk 0:00:59.3]} 23... Qg7
{[%clk 0:00:17.8]} 24. Qh4 {[%clk 0:00:58.1]} 24... Re8 {[%clk 0:00:16.3]} 25.
Bh6 {[%clk 0:00:55.7]} 25... Qf7 {[%clk 0:00:15.9]} 26. Rad1 {[%clk 0:00:53.4]}
26... Be7 {[%clk 0:00:14.2]} 27. Qg3 {[%clk 0:00:46]} 27... Bf6 {[%clk
0:00:11.6]} 28. Re3 {[%clk 0:00:41.5]} 28... Ne7 {[%clk 0:00:05.7]} 29. Rde1
{[%clk 0:00:34.6]} 29... Bd7 {[%clk 0:00:02.8]} 30. h4 {[%clk 0:00:27.7]} 30...
Bg7 {[%clk 0:00:03.2]} 31. Bg5 {[%clk 0:00:24.9]} 31... Nf5 {[%clk 0:00:03.5]}
32. Bxf5 {[%clk 0:00:22.2]} 32... Rxe3 {[%clk 0:00:03.5]} 33. Qxe3 {[%clk
0:00:18.3]} 33... Bxf5 {[%clk 0:00:04.4]} 34. Qxa7 {[%clk 0:00:17.5]} 34... c2
{[%clk 0:00:04.8]} 35. Qc5 {[%clk 0:00:15.8]} 35... Ne6 {[%clk 0:00:04.8]} 36.
Qc8+ {[%clk 0:00:12.9]} 36... Qf8 {[%clk 0:00:05.2]} 37. Qc4 {[%clk 0:00:09.9]}
37... Kh8 {[%clk 0:00:04.1]} 38. g4 {[%clk 0:00:09.7]} 38... Nxg5 {[%clk
0:00:03.9]} 39. hxg5 {[%clk 0:00:08.2]} 39... Bd7 {[%clk 0:00:04.1]} 40. Qxc2
{[%clk 0:00:05.6]} 40... Bxg4 {[%clk 0:00:04.3]} 41. Re3 {[%clk 0:00:04.8]}
41... Bf5 {[%clk 0:00:04.8]} 42. Qe2 {[%clk 0:00:04.2]} 42... Kg8 {[%clk
0:00:03.9]} 43. Re8 {[%clk 0:00:04.1]} 43... Qxe8 {[%clk 0:00:03.8]} 44. Qxe8+
{[%clk 0:00:05]} 44... Bf8 {[%clk 0:00:04.7]} 45. Qe3 {[%clk 0:00:04.1]} 45...
Kf7 {[%clk 0:00:04.4]} 46. f4 {[%clk 0:00:04.2]} 46... Be7 {[%clk 0:00:04.9]}
47. Kg2 {[%clk 0:00:04.2]} 47... Be6 {[%clk 0:00:05.4]} 48. Kg3 {[%clk
0:00:04.4]} 48... Bd5 {[%clk 0:00:05.9]} 49. Qe5 {[%clk 0:00:04.4]} 49... Be6
{[%clk 0:00:06.4]} 50. Qh8 {[%clk 0:00:04.6]} 50... Bxb3 {[%clk 0:00:05.9]} 51.
Qxh7+ {[%clk 0:00:04.9]} 51... Ke6 {[%clk 0:00:06.6]} 52. Qxg6+ {[%clk
0:00:05.3]} 52... Kd7 {[%clk 0:00:07.5]} 53. f5 {[%clk 0:00:05.8]} 53... Bd5
{[%clk 0:00:07.1]} 54. f6 {[%clk 0:00:06.1]} 54... Bd6+ {[%clk 0:00:07.7]} 55.
Kg4 {[%clk 0:00:05.8]} 55... Be6+ {[%clk 0:00:08.6]} 56. Kh5 {[%clk 0:00:06.2]}
56... Bf4 {[%clk 0:00:08.8]} 57. f7 {[%clk 0:00:06.4]} 57... Ke7 {[%clk
0:00:08.9]} 58. Qxe6+ {[%clk 0:00:06.4]} 58... Kf8 {[%clk 0:00:09.7]} 59. Qe8+
{[%clk 0:00:06.3]} 59... Kg7 {[%clk 0:00:09.3]} 60. Qg8# {[%clk 0:00:07.2]} 1-0

[Event "*** Titled Tuesday Blitz"]
[Site "Chess.com"]
[Date "2021.04.27"]
[Round "2"]
[White "malakismayil"]
[Black "MaevskiyNikolay"]
[Result "0-1"]
[WhiteElo "2270"]
[BlackElo "2474"]
[TimeControl "180+1"]
[EndTime "10:19:39 PDT"]
[Termination "MaevskiyNikolay won by resignation"]

1. e4 {[%clk 0:03:00.9]} 1... e6 {[%clk 0:03:00.2]} 2. d4 {[%clk 0:02:58.7]}
2... d5 {[%clk 0:03:00.6]} 3. Nd2 {[%clk 0:02:58.4]} 3... a6 {[%clk 0:02:58]} 4.
c3 {[%clk 0:02:51.5]} 4... c5 {[%clk 0:02:56.1]} 5. exd5 {[%clk 0:02:50.3]} 5...
exd5 {[%clk 0:02:55.3]} 6. Ngf3 {[%clk 0:02:46.5]} 6... Nc6 {[%clk 0:02:55.5]}
7. Be2 {[%clk 0:02:44.6]} 7... Nf6 {[%clk 0:02:52.8]} 8. O-O {[%clk 0:02:43.8]}
8... cxd4 {[%clk 0:02:51.3]} 9. cxd4 {[%clk 0:02:35.7]} 9... Bd6 {[%clk
0:02:51.3]} 10. Re1 {[%clk 0:02:33.4]} 10... O-O {[%clk 0:02:51.4]} 11. h3
{[%clk 0:02:32]} 11... Bf5 {[%clk 0:02:49.8]} 12. Nb3 {[%clk 0:02:29.8]} 12...
h6 {[%clk 0:02:47.4]} 13. Be3 {[%clk 0:02:27.9]} 13... Re8 {[%clk 0:02:46.4]}
14. Nc1 {[%clk 0:02:23.5]} 14... Ne4 {[%clk 0:02:39.1]} 15. Nd3 {[%clk
0:02:21.5]} 15... Qf6 {[%clk 0:02:37]} 16. Qb3 {[%clk 0:02:08]} 16... Red8
{[%clk 0:02:11.1]} 17. Kh1 {[%clk 0:01:59.3]} 17... Qe6 {[%clk 0:01:57.7]} 18.
Nf4 {[%clk 0:01:39]} 18... Nxf2+ {[%clk 0:01:49.1]} 19. Bxf2 {[%clk 0:01:34.1]}
19... Bxf4 {[%clk 0:01:49.3]} 20. Bd3 {[%clk 0:01:27.1]} 20... Be4 {[%clk
0:01:47.9]} 21. Bxe4 {[%clk 0:01:18.9]} 21... dxe4 {[%clk 0:01:46.8]} 22. Qxe6
{[%clk 0:01:18.2]} 22... fxe6 {[%clk 0:01:46.9]} 23. Rxe4 {[%clk 0:01:18.5]}
23... Bc7 {[%clk 0:01:39.2]} 24. Rxe6 {[%clk 0:01:16.7]} 24... Bb6 {[%clk
0:01:39.5]} 25. d5 {[%clk 0:01:05.4]} 25... Bxf2 {[%clk 0:01:36.2]} 26. dxc6
{[%clk 0:01:05.2]} 26... bxc6 {[%clk 0:01:36.5]} 27. Rxc6 {[%clk 0:01:06]} 27...
Bg3 {[%clk 0:01:30.9]} 28. Rac1 {[%clk 0:00:58.2]} 28... a5 {[%clk 0:01:26.3]}
29. Rg6 {[%clk 0:00:54.4]} 29... Bf4 {[%clk 0:01:25.5]} 30. Rf1 {[%clk
0:00:49.3]} 30... Kh7 {[%clk 0:01:19.1]} 31. Rg4 {[%clk 0:00:46.5]} 31... Bc7
{[%clk 0:01:12.8]} 32. Rc1 {[%clk 0:00:43.1]} 32... Rd7 {[%clk 0:01:11.8]} 33.
b3 {[%clk 0:00:25.9]} 33... Rad8 {[%clk 0:01:11.3]} 34. g3 {[%clk 0:00:21.8]}
34... Rd1+ {[%clk 0:00:51.5]} 35. Rxd1 {[%clk 0:00:21.6]} 35... Rxd1+ {[%clk
0:00:52.4]} 36. Kg2 {[%clk 0:00:22.2]} 36... Rc1 {[%clk 0:00:50.6]} 37. Rc4
{[%clk 0:00:21.1]} 37... Rxc4 {[%clk 0:00:47.9]} 38. bxc4 {[%clk 0:00:22]} 38...
Kg6 {[%clk 0:00:48.2]} 39. g4 {[%clk 0:00:22.2]} 39... Kf6 {[%clk 0:00:48.5]}
40. Kf2 {[%clk 0:00:22.5]} 40... Bf4 {[%clk 0:00:48.4]} 41. Ke2 {[%clk
0:00:21.7]} 41... Ke6 {[%clk 0:00:45.8]} 42. Kd3 {[%clk 0:00:22.4]} 42... Bg3
{[%clk 0:00:44.1]} 43. Ke4 {[%clk 0:00:23.3]} 43... g6 {[%clk 0:00:43.4]} 44.
Nd4+ {[%clk 0:00:23.4]} 44... Kd6 {[%clk 0:00:41.3]} 45. Ne2 {[%clk 0:00:23.7]}
45... Be1 {[%clk 0:00:37.3]} 46. Nf4 {[%clk 0:00:23.7]} 46... h5 {[%clk
0:00:35.4]} 47. Nd3 {[%clk 0:00:24.1]} 47... Bc3 {[%clk 0:00:30.9]} 48. gxh5
{[%clk 0:00:22.7]} 48... gxh5 {[%clk 0:00:30.2]} 49. Kf5 {[%clk 0:00:23.2]}
49... h4 {[%clk 0:00:30]} 50. Kg4 {[%clk 0:00:22.9]} 50... Bf6 {[%clk 0:00:30]}
51. Kf5 {[%clk 0:00:22.8]} 51... Bd8 {[%clk 0:00:28.8]} 52. Ke4 {[%clk
0:00:22.6]} 52... Bf6 {[%clk 0:00:28]} 53. Kf5 {[%clk 0:00:20.5]} 53... Bd8
{[%clk 0:00:27.7]} 54. a4 {[%clk 0:00:19.2]} 54... Be7 {[%clk 0:00:27.2]} 55.
Kg6 {[%clk 0:00:18.2]} 55... Ke6 {[%clk 0:00:23.3]} 56. Nf4+ {[%clk 0:00:11.4]}
56... Ke5 {[%clk 0:00:21.9]} 57. Nd5 {[%clk 0:00:12.3]} 57... Bc5 {[%clk
0:00:20.4]} 58. Kg5 {[%clk 0:00:11.9]} 58... Bf2 {[%clk 0:00:19.4]} 59. Nc3
{[%clk 0:00:08.3]} 59... Kd4 {[%clk 0:00:19.3]} 60. Nd1 {[%clk 0:00:07.6]} 60...
Be1 {[%clk 0:00:19.2]} 61. Nb2 {[%clk 0:00:01.8]} 61... Kc3 {[%clk 0:00:18.7]}
62. c5 {[%clk 0:00:02]} 62... Kxb2 {[%clk 0:00:17]} 63. c6 {[%clk 0:00:02.4]}
63... Bg3 {[%clk 0:00:17.1]} 64. c7 {[%clk 0:00:02.9]} 64... Bxc7 {[%clk
0:00:17.2]} 65. Kxh4 {[%clk 0:00:03.8]} 65... Kb3 {[%clk 0:00:17.5]} 66. Kg5
{[%clk 0:00:03.4]} 66... Be5 {[%clk 0:00:17.7]} 0-1

[Event "*** Titled Tuesday Blitz"]
[Site "Chess.com"]
[Date "2021.04.27"]
[Round "2"]
[White "CrushingKings"]
[Black "Thjop"]
[Result "1-0"]
[WhiteElo "2519"]
[BlackElo "2695"]
[TimeControl "180+1"]
[EndTime "10:19:41 PDT"]
[Termination "CrushingKings won by checkmate"]

1. e4 {[%clk 0:03:00.9]} 1... e6 {[%clk 0:02:58.8]} 2. Nf3 {[%clk 0:03:00.4]}
2... d5 {[%clk 0:02:59.7]} 3. Nc3 {[%clk 0:03:00.5]} 3... Nf6 {[%clk 0:02:59.3]}
4. e5 {[%clk 0:03:00.5]} 4... Nfd7 {[%clk 0:02:59.6]} 5. d4 {[%clk 0:03:01]}
5... c5 {[%clk 0:03:00.5]} 6. dxc5 {[%clk 0:03:01.8]} 6... Nc6 {[%clk 0:03:00]}
7. Bf4 {[%clk 0:03:02.2]} 7... Nxc5 {[%clk 0:03:00.1]} 8. Bd3 {[%clk 0:03:01.4]}
8... a6 {[%clk 0:03:00.4]} 9. h4 {[%clk 0:03:01.7]} 9... b5 {[%clk 0:03:00.1]}
10. a3 {[%clk 0:03:02.4]} 10... Qb6 {[%clk 0:02:57.9]} 11. Kf1 {[%clk
0:02:59.3]} 11... h6 {[%clk 0:02:57.6]} 12. h5 {[%clk 0:02:59.2]} 12... Be7
{[%clk 0:02:57.4]} 13. Rh3 {[%clk 0:02:59.4]} 13... Bb7 {[%clk 0:02:54.8]} 14.
Rg3 {[%clk 0:02:59.6]} 14... Bf8 {[%clk 0:02:54.5]} 15. Qe2 {[%clk 0:02:57.5]}
15... O-O-O {[%clk 0:02:45.9]} 16. Rg4 {[%clk 0:02:52.3]} 16... Kb8 {[%clk
0:02:43.6]} 17. a4 {[%clk 0:02:35.4]} 17... b4 {[%clk 0:02:41.6]} 18. a5 {[%clk
0:02:36]} 18... Nxa5 {[%clk 0:02:34.6]} 19. Na4 {[%clk 0:02:36.4]} 19... Nxa4
{[%clk 0:02:27.7]} 20. Rxa4 {[%clk 0:02:37.3]} 20... Nc4 {[%clk 0:02:14.9]} 21.
b3 {[%clk 0:01:52]} 21... Nb2 {[%clk 0:02:13.9]} 22. Be3 {[%clk 0:01:52.4]}
22... Qc7 {[%clk 0:02:03.9]} 23. Ra2 {[%clk 0:01:33.7]} 23... Nxd3 {[%clk
0:02:00.8]} 24. Qxd3 {[%clk 0:01:34.6]} 24... Rc8 {[%clk 0:01:46.8]} 25. Bd2
{[%clk 0:01:07.2]} 25... a5 {[%clk 0:01:44]} 26. Be3 {[%clk 0:01:05.8]} 26...
Bc5 {[%clk 0:01:09.6]} 27. Rxg7 {[%clk 0:00:49.6]} 27... Qb6 {[%clk 0:00:59.4]}
28. Bxc5 {[%clk 0:00:31.6]} 28... Rxc5 {[%clk 0:01:00.3]} 29. Kg1 {[%clk
0:00:32.1]} 29... Rc3 {[%clk 0:00:50.2]} 30. Qd2 {[%clk 0:00:24.4]} 30... Qc7
{[%clk 0:00:43.2]} 31. Qf4 {[%clk 0:00:20.6]} 31... Rxc2 {[%clk 0:00:19.2]} 32.
Rxc2 {[%clk 0:00:21.5]} 32... Qxc2 {[%clk 0:00:19.5]} 33. Qxf7 {[%clk
0:00:22.2]} 33... Qc8 {[%clk 0:00:14.3]} 34. Nd4 {[%clk 0:00:22.5]} 34... Rf8
{[%clk 0:00:10.8]} 35. Qe7 {[%clk 0:00:11.8]} 35... Qc1+ {[%clk 0:00:10.6]} 36.
Kh2 {[%clk 0:00:11.8]} 36... Qf4+ {[%clk 0:00:10.6]} 37. Rg3 {[%clk 0:00:12.4]}
37... Qxf2 {[%clk 0:00:07.7]} 38. Nxe6 {[%clk 0:00:11.3]} 38... Rc8 {[%clk
0:00:04.9]} 39. Qd6+ {[%clk 0:00:11.8]} 39... Ka8 {[%clk 0:00:04.7]} 40. Nc7+
{[%clk 0:00:11.3]} 40... Ka7 {[%clk 0:00:03.7]} 41. Nb5+ {[%clk 0:00:11.6]}
41... Ka8 {[%clk 0:00:04.2]} 42. Nc7+ {[%clk 0:00:11.1]} 42... Ka7 {[%clk
0:00:04.2]} 43. Nb5+ {[%clk 0:00:07.1]} 43... Ka8 {[%clk 0:00:04.7]} 44. e6
{[%clk 0:00:07.6]} 44... d4 {[%clk 0:00:04.2]} 45. Nc7+ {[%clk 0:00:07.1]} 45...
Ka7 {[%clk 0:00:04]} 46. Nb5+ {[%clk 0:00:07.7]} 46... Ka8 {[%clk 0:00:04.4]}
47. e7 {[%clk 0:00:08]} 47... d3 {[%clk 0:00:04.3]} 48. Nc7+ {[%clk 0:00:08.1]}
48... Ka7 {[%clk 0:00:04.6]} 49. Qxd3 {[%clk 0:00:06.2]} 49... Qf4 {[%clk
0:00:01.6]} 50. Qe3+ {[%clk 0:00:05.8]} 50... Qxe3 {[%clk 0:00:01.2]} 51. Rxe3
{[%clk 0:00:06.7]} 51... Bc6 {[%clk 0:00:01.9]} 52. e8=Q {[%clk 0:00:06.6]}
52... Bxe8 {[%clk 0:00:02.2]} 53. Nxe8 {[%clk 0:00:07.1]} 53... Rc3 {[%clk
0:00:03]} 54. Re7+ {[%clk 0:00:05.9]} 54... Kb6 {[%clk 0:00:03]} 55. Re6+ {[%clk
0:00:06]} 55... Kb7 {[%clk 0:00:02.1]} 56. Rxh6 {[%clk 0:00:06.4]} 56... Rxb3
{[%clk 0:00:02.3]} 57. Nd6+ {[%clk 0:00:07.3]} 57... Kc6 {[%clk 0:00:02.7]} 58.
Nc4+ {[%clk 0:00:07.5]} 58... Kb5 {[%clk 0:00:03]} 59. Nd2 {[%clk 0:00:07.6]}
59... Rd3 {[%clk 0:00:03.2]} 60. Ne4 {[%clk 0:00:07.2]} 60... b3 {[%clk
0:00:03.5]} 61. Rh8 {[%clk 0:00:07.2]} 61... Ka4 {[%clk 0:00:03.4]} 62. Nc5+
{[%clk 0:00:05.6]} 62... Kb4 {[%clk 0:00:03.1]} 63. Nxd3+ {[%clk 0:00:06.5]}
63... Kc3 {[%clk 0:00:04]} 64. Rd8 {[%clk 0:00:06.7]} 64... a4 {[%clk
0:00:03.8]} 65. h6 {[%clk 0:00:07.2]} 65... a3 {[%clk 0:00:04.7]} 66. h7 {[%clk
0:00:07.5]} 66... b2 {[%clk 0:00:04.8]} 67. h8=Q+ {[%clk 0:00:07.9]} 67... Kc2
{[%clk 0:00:05.7]} 68. Nxb2 {[%clk 0:00:08.4]} 68... axb2 {[%clk 0:00:05.7]} 69.
Rd2+ {[%clk 0:00:09.1]} 69... Kb1 {[%clk 0:00:06.6]} 70. Qxb2# {[%clk
0:00:09.4]} 1-0